Cogmind - Beta 16 @@@ ROGUE MODE // 2025.12.19 @ 01:43:17 Player: Red Box Result: Destroyed by Y-45 Defender with Heavy Assault Rifle Performance ------------- Evolutions (0) 0 Regions Visited (3) 600 Robots Destroyed (45) 225 Value Destroyed (1035) 1035 Prototype IDs (5) 100 Alien Tech Used (0) 0 Bonus (7) 7 TOTAL SCORE: 1967 Bonus ------- Follower Combat Kills 7 Cogmind --------- Core Integrity 0/250 Matter 295/300 Energy 177/200 System Corruption 0% Temperature Cool (9) Movement Treading (160) Location -10/Subcaves Parts ------- > --- POWER (1) -------- Subdweller Power Source > --- PROPULSION (2) --- Light Treads Light Treads > --- UTILITY (2) ------ Large Storage Unit Makeshift Light Armor Plating > --- WEAPON (2) ------- Subdweller Beam Cannon Battle Cannon > --- INVENTORY (15) --- Subdweller Power Source Makeshift Power Source Spiked Treads Compact Wheel Improved Heat Sink Disposable Heat Sink High-capacity Matter Pod (200) Gun Armor Makeshift Hacking Suite Makeshift System Restoration Module Barrage Gun Battle Cannon Battle Cannon Rocket Launcher Hammer Peak State ------------ > --- POWER ------------ Subdweller Power Source > --- PROPULSION ------- Light Treads Light Treads > --- UTILITY ---------- Large Storage Unit Makeshift Light Armor Plating > --- WEAPON ----------- Battle Cannon Battle Cannon > --- INVENTORY -------- Subdweller Power Source Makeshift Power Source Spiked Treads Compact Wheel Improved Heat Sink Disposable Heat Sink High-capacity Matter Pod Gun Armor Makeshift Hacking Suite Makeshift System Restoration Module Barrage Gun Battle Cannon Rocket Launcher Hammer [Rating: 17] Favorites ----------- Power Ion Engine Engine Ion Engine Propulsion Light Treads Treads Light Treads Leg Aluminum Leg Wheel Wheel Utility Large Storage Unit Device Improved Terrain Scanner Storage Large Storage Unit Processor Targeting Computer Protection Light Armor Plating Weapon Assault Rifle Energy Gun EM Pulse Gun Energy Cannon Subdweller Beam Cannon Ballistic Gun Assault Rifle Ballistic Cannon Battle Cannon Launcher Grenade Launcher Special Weapon Mining Laser Impact Weapon Hammer Build | -11 -10 -10 -10 ------- Run | Yrd Mat Min Sub Slots Evolved . | . . . . Power . | . . . . Propulsion . | . . . . Utility . | . . . . Weapon . | . . . . Parts Attached 36 | 10 10 1 15 Power 5 | 2 . . 3 Engine 5 | 2 . . 3 Core . | . . . . Reactor . | . . . . Propulsion 8 | 2 2 1 3 Treads 4 | . 1 . 3 Leg 2 | 2 . . . Wheel 2 | . 1 1 . Hover . | . . . . Flight . | . . . . Utility 9 | 3 4 . 2 Device 3 | 2 1 . . Storage 3 | 1 2 . . Processor 1 | . 1 . . Hackware . | . . . . Protection 2 | . . . 2 Artifact . | . . . . Weapon 14 | 3 4 . 7 Energy Gun 3 | 2 . . 1 Energy Cannon 3 | . . . 3 Ballistic Gun 1 | 1 . . . Ballistic Cannon 2 | . . . 2 Launcher 3 | . 2 . 1 Special Weapon 1 | . 1 . . Impact Weapon 1 | . 1 . . Slashing Weapon . | . . . . Piercing Weapon . | . . . . Special Melee Weapon . | . . . . Unidentified Prototypes . | . . . . Parts Lost 5 | . 1 . 4 Power 1 | . . . 1 Propulsion 1 | . . . 1 Utility 2 | . 1 . 1 Weapon 1 | . . . 1 Highest Loss Streak 3 | . 1 . 3 To Critical Strikes . | . . . . Average Backups 13 | 5 11 14 14 Power . | . . 1 1 Propulsion 3 | 3 3 4 3 Utility 3 | . 1 4 5 Weapon 5 | 1 5 5 5 Tool/Special . | . . . . Unused Backups 16 | . 2 1 13 Power 1 | . . . 1 Propulsion 3 | . 1 . 2 Utility 7 | . 1 . 6 Weapon 5 | . . 1 4 Tool/Special . | . . . . Average Slot Usage (%) 99 | . 99 100 99 Engine 13 | . 14 14 13 Treads 14 | . 2 14 24 Leg 7 | . 22 . . Wheel 5 | . 2 14 3 Storage 14 | . 14 14 14 Processor 9 | . 11 14 4 Protection 4 | . . . 9 Energy Gun 5 | . 9 9 . Energy Cannon 4 | . . . 10 Ballistic Gun 8 | . 13 14 . Ballistic Cannon 5 | . . . 12 Launcher 2 | . . 4 2 Impact Weapon 1 | . 2 . . Peak Build Rating 17 | 10 9 8 17 Average Rating 10 | 7 8 8 13 On Entrance 6 | . 9 8 8 Avg Prop Armor Cover (%) 10 | . 12 8 12 Naked Turns . | . . . . Heaviest Build 40 | 13 30 30 40 Greatest Support 40 | 20 20 20 40 Greatest Overweight (x) 3 | 1 2 2 3 Average Overweight (x) 1 | . . 1 . Largest Inventory Capacity 15 | 8 15 15 15 Average Capacity 13 | 7 12 15 15 Most Carried 15 | 8 15 15 15 Average Carried 13 | 5 11 14 14 Final Capacity 15 | 8 15 15 15 Final Carried 15 | 7 15 15 15 Class Distribution -------------------- 93% | Mutant 6% | Scavenger-Mutant Dominant Class ---------------- Mutant | -10/Materials Mutant | -10/Mines Mutant | -10/Subcaves Resources | -11 -10 -10 -10 ----------- Run | Yrd Mat Min Sub Matter Collected 1697 | 296 785 103 513 Remotely . | . . . . Salvage Created 1173 | 141 538 165 329 Parts 81 | 12 41 7 21 Haulers Intercepted 2 | . 2 . . Recyclers Shooed . | . . . . Parts Field Recycled . | . . . . Retrieved Matter . | . . . . Parts Self-Destructed 10 | . . . 10 Prevented . | . . . . Parts Restored . | . . . . Kills | -11 -10 -10 -10 ------- Run | Yrd Mat Min Sub Combat Hostiles Destroyed 30 | . 11 4 15 Guns 10 | . 6 3 1 Cannons 7 | . . . 7 AOE 13 | . 5 1 7 Classes Destroyed 11 | 2 7 1 1 Worker 2 | . 1 1 . Builder 2 | . 2 . . Tunneler 4 | 4 . . . Hauler 2 | . 2 . . Recycler 2 | 1 1 . . Mechanic 1 | . 1 . . Watcher 3 | . 3 . . Swarmer 8 | . 7 . 1 Grunt 9 | . 4 3 2 Subdweller 12 | . . . 12 Assembled 1 | . . 1 . Best Kill Streak 3 | 3 3 2 3 Combat Bots Only 3 | . 3 2 3 Max Kills in Single Turn 2 | 1 2 1 2 Gunslinging . | . . . . Exploded 2 | . 2 1 1 Melee . | . . . . Uniques/NPCs Destroyed . | . . . . Combat | -11 -10 -10 -10 -------- Run | Yrd Mat Min Sub Hostile Shots Fired 131 | . 54 10 67 Missed 40 | . 19 4 17 Hits 91 | . 35 6 50 Projectile 91 | . 35 6 50 Critical Strikes 3 | . 1 . 2 Damage Taken 1518 | . 377 120 1021 Core 251 | . 91 14 146 Absorbed by Shields . | . . . . Regen/Repaired (Parts) 106 | . 106 . . Core Remaining (%) 100 | 100 . . . Volleys Fired 128 | 17 51 11 49 Largest 2 | 2 2 2 2 Hottest 145 | 70 100 60 145 Shots Fired 238 | 34 93 22 89 Gun 137 | 34 82 19 2 Cannon 74 | . . . 74 Launcher 22 | . 6 3 13 Special 5 | . 5 . . Kinetic 103 | 17 44 11 31 Thermal 71 | 17 9 . 45 Explosive 22 | . 6 3 13 Electromagnetic 42 | . 34 8 . Robot Hit Streak 17 | 4 7 12 17 Robot Miss Streak 4 | 4 4 2 3 Penetration Max . | . . . . Secondary Targets . | . . . . Shots Hit Robots 144 | 17 51 15 61 Core Hits 64 | 6 22 9 27 Critical Kills . | . . . . Critical Parts Destroyed 2 | . 2 . . Critical Strikes 6 | . 2 . 4 Blast 4 | . . . 4 Smash 2 | . 2 . . Melee Attacks 19 | . 9 . 10 Impact 19 | . 9 . 10 Slashing . | . . . . Piercing . | . . . . Sneak Attacks 3 | . 3 . . Combat Hostiles . | . . . . Follow-up Attacks . | . . . . Damage Inflicted 3854 | 212 1143 337 2162 Guns 1097 | 212 674 192 19 Cannons 1119 | . . . 1119 Explosions 1425 | . 285 145 995 Melee 213 | . 184 . 29 Ramming . | . . . . Kinetic 1064 | 113 322 91 538 Thermal 784 | 99 57 28 600 Explosive 1367 | . 255 117 995 Electromagnetic 426 | . 325 101 . Impact 213 | . 184 . 29 Slashing . | . . . . Piercing . | . . . . Highest Corruption . | . . . . Average Corruption . | . . . . Corruption Purged . | . . . . Corruption Blocked . | . . . . Overload Shots . | . . . . Overflow Damage 164 | . 164 . . Projectiles . | . . . . Explosions . | . . . . Melee 164 | . 164 . . Knockbacks 12 | . 3 . 9 Impact 3 | . 3 . . Kinetic 9 | . . . 9 Secondary . | . . . . Self-Inflicted Damage 122 | . 39 45 38 Shots 4 | . 1 2 1 Rammed . | . . . . Targets Rammed . | . . . . Kicked . | . . . . Crushed . | . . . . Highest Temperature 84 | 36 84 30 63 Average Temperature 21 | 12 29 14 20 Received Heat Transfer 327 | . 117 42 168 Siege Activations . | . . . . Martial Activations . | . . . . Shielding Activations . | . . . . Robots Disrupted . | . . . . Combat Hostiles . | . . . . Robots Corrupted 3 | . 3 . . Combat Hostiles . | . . . . Parts Fried 7 | . 7 . . Impact Corruptions 6 | . 6 . . Robots Melted . | . . . . Combat Hostiles . | . . . . Parts Melted 2 | . . . 2 Heat Transferred 1334 | 296 124 100 814 Parts Sabotaged . | . . . . Parts Stolen . | . . . . Parts Stripped . | . . . . Power Chain Reactions 2 | . 1 1 . Alert | -11 -10 -10 -10 ------- Run | Yrd Mat Min Sub Maximum Alert Level . | . . . . Low Security (%) 100 | 100 100 100 . Level 1 . | . . . . Level 2 . | . . . . Level 3 . | . . . . Level 4 . | . . . . Level 5 . | . . . . High Security . | . . . . Max Security . | . . . . Peak Influence 112 | 5 112 48 . Initial 11 | . . 11 . Average 17 | 1 27 6 . Influence Increases 732 | 25 445 111 151 Destroy 0b10 Robot/C 360 | . 220 60 80 Destroy 0b10 Robot/NC 80 | 25 50 5 . Destroy Leader 70 | . 40 20 10 Allied During Kill 1 | . . . 1 Successful Hack 56 | . 56 . . Select Force Hacks 30 | . 30 . . Destroy Structure 75 | . 49 26 . Lose Combat Pursuer 60 | . . . 60 Influence Decreases 732 | 25 415 138 154 Entered New Map 22 | . . 19 3 Time Decay 670 | 25 405 119 121 Lost Part 20 | . 10 . 10 Lost Ally 20 | . . . 20 Squads Dispatched 1 | . 1 . . Investigation 1 | . 1 . . Extermination . | . . . . Reinforcement . | . . . . Assault . | . . . . Garrison . | . . . . Intercept . | . . . . Searches Triggered . | . . . . Construction Impeded . | . . . . Haulers Reinforced . | . . . . Active Scanning Responses . | . . . . Cargo Convoy Interrupts . | . . . . Stealth | -11 -10 -10 -10 --------- Run | Yrd Mat Min Sub Distress Signals 1 | . . 1 . Communications Jammed . | . . . . Distress Signals . | . . . . Times Spotted 45 | . 16 5 24 Peak Tracking Total 6 | . 3 2 6 Tactical Retreats 5 | . . . 5 Traps | -11 -10 -10 -10 ------- Run | Yrd Mat Min Sub Traps Triggered 1 | . . . 1 Indirectly . | . . . . Trap Hack Attempts . | . . . . Triggered . | . . . . Disarmed . | . . . . Reprogrammed . | . . . . Reused . | . . . . Traps Extracted . | . . . . Installed . | . . . . Triggered . | . . . . Machines | -11 -10 -10 -10 ---------- Run | Yrd Mat Min Sub Machines Disabled . | . . . . Max in Single Turn . | . . . . Machines Repaired . | . . . . Machines Dismantled . | . . . . Machines Sabotaged . | . . . . Overloaded Fab Kills . | . . . . Hacking | -11 -10 -10 -10 --------- Run | Yrd Mat Min Sub Machines Accessed 11 | . 10 . 1 Terminals 8 | . 8 . . Fabricators . | . . . . Repair Stations 1 | . 1 . . Recycling Units 1 | . 1 . . Scanalyzers . | . . . . Garrison Access . | . . . . Total Hacks 44 | . 41 . 3 Successful 30 | . 27 . 3 Failed 13 | . 13 . . Catastrophic . | . . . . Database Lockouts 1 | . 1 . . Manual 27 | . 27 . . Terminals 32 | . 32 . . Fabricators . | . . . . Repair Stations 4 | . 4 . . Recycling Units 5 | . 5 . . Scanalyzers . | . . . . Garrison Access . | . . . . Terminal Hacks 11 | . 8 . 3 Record 3 | . . . 3 Robot Analysis 3 | . 3 . . Prototype ID Bank 3 | . 3 . . Locate Traps 1 | . 1 . . Zone Layout 1 | . 1 . . Fabricator Hacks . | . . . . Repair Station Hacks 4 | . 4 . . Scan Component 2 | . 2 . . Repair 2 | . 2 . . Recycling Unit Hacks 1 | . 1 . . Retrieve Components 1 | . 1 . . Scanalyzer . | . . . . Garrison Access Hacks . | . . . . Unauthorized Hacks 14 | . 14 . . Terminals 11 | . 11 . . Track 1 | . 1 . . Botnet 3 | . 3 . . Disrupt 1 | . 1 . . Operators 1 | . 1 . . Skim 5 | . 5 . . Fabricators . | . . . . Repair Stations . | . . . . Recycling Units 3 | . 3 . . Reject 1 | . 1 . . Mask 1 | . 1 . . Tunnel 1 | . 1 . . Scanalyzers . | . . . . Garrison Access . | . . . . Data Cores Recovered . | . . . . Used . | . . . . Hacking Detections 10 | . 10 . . Full Trace Events . | . . . . Feedback Events . | . . . . Feedback Blocked . | . . . . Robot Schematics Acquired . | . . . . Robots Built . | . . . . Authchips . | . . . . Time . | . . . . Total Robot Build Rating . | . . . . Part Schematics Acquired . | . . . . Parts Built . | . . . . Authchips . | . . . . Time . | . . . . Total Part Build Rating . | . . . . Part Studies Acquired . | . . . . Parts Repaired 2 | . 2 . . Time 52 | . 52 . . Parts Recycled . | . . . . Recycled Matter . | . . . . Retrieved Matter . | . . . . Retrieved Components 10 | . 10 . . Parts Scanalyzed . | . . . . Part Schematics Acquired . | . . . . Parts Damaged . | . . . . Bothacking | -11 -10 -10 -10 ------------ Run | Yrd Mat Min Sub Used RIF Installer . | . . . . Robots Hacked . | . . . . Non-combat . | . . . . Combat . | . . . . Robot Hacks Applied . | . . . . Relay Couplers Released . | . . . . Fabnet Peak Effective % . | . . . . Robots Rewired . | . . . . Allies Hacked . | . . . . Hacks Repelled . | . . . . Allies | -11 -10 -10 -10 -------- Run | Yrd Mat Min Sub Total Allies 3 | . . 3 . Largest Group 3 | . . 3 3 Highest-Rated Group 40 | . . 40 40 Highest-Rated Ally 16 | . . 16 16 Total Orders . | . . . . Ally Attacks 5 | . . 3 2 Total Damage 37 | . . 15 22 Kills 1 | . . . 1 Allies Corrupted . | . . . . Allies Melted . | . . . . Intel | -11 -10 -10 -10 ------- Run | Yrd Mat Min Sub Active Infowar (turns) 299 | 120 179 . . Terrain 299 | 120 179 . . Robot Analysis Total 3 | . 3 . . Derelict Logs Recovered 3 | . . 1 2 Drone Launches . | . . . . Drone Recoveries . | . . . . Exploration | -11 -10 -10 -10 ------------- Run | Yrd Mat Min Sub Turns Passed 5770 | 217 1858 1364 2331 Spaces Moved 3313 | 123 1031 801 1358 Core 12 | 12 . . . Treads 1225 | . . 281 944 Legs 890 | 111 779 . . Wheels 1186 | . 252 520 414 Hover . | . . . . Flight . | . . . . Fastest Speed 50 | 50 110 110 110 Average Speed 146 | 115 142 155 147 Slowest Speed 240 | 120 190 240 160 Overloaded Moves . | . . . . Propulsion Burnouts . | . . . . Robots Hopped . | . . . . Potential Cave-ins . | . . . . Cave-ins Triggered . | . . . . Exploration Rate (%) 67 | 7 98 101 63 Regions Visited 3 Branch Regions 2 Pre-discovered Areas 3 | . 1 1 1 Known Exits Taken 2 | . 1 1 . Unknown Exits Taken 1 | 1 . . . Scrap Searched 6 | . . 2 4 Spaces Dug 9 | . 8 . 1 Terrain Destroyed 155 | . 52 31 72 Melee 4 | . 3 . 1 Projectile 12 | . 5 . 7 AOE 139 | . 44 31 64 Terrain Rammed . | . . . . Walls Destroyed . | . . . . Machines Disabled . | . . . . Actions | -11 -10 -10 -10 --------- Run | Yrd Mat Min Sub Total 3927 | 159 1299 896 1573 Wait 335 | . 157 76 102 Move 3310 | 122 1030 800 1358 Hop . | . . . . Pick Up 42 | 8 16 2 16 Fast Attach 9 | 6 2 . 1 Attach 12 | 1 4 . 7 Detach 2 | . 1 . 1 Swap 45 | 4 20 4 17 Drop 25 | 1 9 3 12 Fire 128 | 17 51 11 49 Melee 19 | . 9 . 10 Ram . | . . . . Kick . | . . . . Crush . | . . . . Escape Stasis . | . . . . Rewire . | . . . . Trap . | . . . . Miscellaneous . | . . . . Route ------- -11/Scrapyard -10/Materials (discovered 6 exits: *Mat x3 / *Min x2 / Sub) -10/Mines (discovered 3 exits: *Mat x2 / *Sub) -10/Subcaves (discovered 3 exits: *Mat x2 / *Rec) History --------- Turn | Location | Event 11 | -11/Scrapyard | Discovered new exit (range 15) 218 | -11/Scrapyard | Entered Materials 313 | -10/Materials | Build established: Mutant 380 | -10/Materials | Discovered new exit (range 15) 536 | -10/Materials | Discovered new exit (range 14) 1136 | -10/Materials | Discovered new exit (range 4) 1147 | -10/Materials | Learned location of 1 exit from Storage 1193 | -10/Materials | Learned location of 1 exit from Recycling 1227 | -10/Materials | Learned Storage emergency access door positions 1259 | -10/Materials | Central database locked down 1264 | -10/Materials | Identified exit to Mines 1264 | -10/Materials | Identified exit to Materials 1264 | -10/Materials | Identified exit to Subcaves 1269 | -10/Materials | Learned Storage garrison access intel 1270 | -10/Materials | Learned 2 Mines zone layouts 1275 | -10/Materials | Learned location of 2 exits from Subcaves 1841 | -10/Materials | Repaired Assault Rifle 1869 | -10/Materials | Repaired EM Pulse Gun 2076 | -10/Materials | Entered Mines 2147 | -10/Mines | Found a hidden stash of uninstalled traps 2148 | -10/Mines | Assembled infested the area 2378 | -10/Mines | Discovered exit to Materials (range 9) 2621 | -10/Mines | Learned location of Storage (-8) 2644 | -10/Mines | Received a Rocket Launcher from a helpful Derelict 3268 | -10/Mines | Assisted by bots powering up and referring to "LRC-V3" 3424 | -10/Mines | Discovered exit to Subcaves (range 6) 3440 | -10/Mines | Entered Subcaves 3440 | -10/Subcaves | Accompanied by 3 allies 3441 | -10/Subcaves | Identified exit to Recycling 3441 | -10/Subcaves | Identified exit to Materials 3526 | -10/Subcaves | Shifting Twisted Machinery released Battle Cannon 3564 | -10/Subcaves | Shifting Twisted Machinery released Sub. Laser 3639 | -10/Subcaves | Learned Materials emergency access door positions 3665 | -10/Subcaves | Shifting Twisted Machinery released Battle Cannon 3770 | -10/Subcaves | Discovered exit to Materials (range 12) 3824 | -10/Subcaves | Visited Clippyterm 3828 | -10/Subcaves | Learned location of Extension (-4) 3924 | -10/Subcaves | Ambushed by Subdwellers from Twisted Machinery 3934 | -10/Subcaves | Core integrity fell below 50% 4230 | -10/Subcaves | A Subdweller sparked back to life 4230 | -10/Subcaves | A Subdweller sparked back to life 4230 | -10/Subcaves | A Subdweller sparked back to life 4265 | -10/Subcaves | Found Prototype Protection 4763 | -10/Subcaves | Learned 2 Materials zone layouts 4980 | -10/Subcaves | Shifting Twisted Machinery released Battle Cannon 5293 | -10/Subcaves | Core integrity fell below 20% 5335 | -10/Subcaves | Lost 3 parts (1n1u1w) 5771 | -10/Subcaves | Destroyed by Y-45 Defender with Heavy Assault Rifle Last Messages --------------- 05296_ Critical hit (Destroy). 05299_ O0-L0W(R) destroyed. 05299_ Destroyed Scrap Shield. 05299_ GV-NMG(R) destroyed. 05303_ X2-Y37(R) affixes Scrap Shield Fragment to Scrap Shield. 05304_ Sub. Beam Cannon destroyed. 05307_ X2-Y37(R) knocked back. 05310_ X2-Y37(R) destroyed. 05313_ Acquired 29 matter. 05315_ Acquired 17 matter. 05318_ Acquired 5 matter. 05323_ Acquired Sub. Power Source. 05327_ Acquired Disposable Heat Sink. 05421_ Acquired 29 matter. 05483_ Triggered Piercing Trap. 05483_ Spikes shoot up from the floor. 05518_ Acquired 36 matter. 05613_ Acquired Sub. Beam Cannon. 05695_ Acquired 15 matter. Map ----- +----------------------------------------------------+ | ??????????????????????????????????????????????# ? | | ??????????????????????????????????????????????# ? | | ??????????????????????????????????????????????# # | | ???????????????????????????????????????????????# | | ???????????????????????????????????????????????## | | ????????????????????????????????????????????????# | | ?????????????????????????????????????????????##?# | | ???????????????????????????????????????? ## ## | | ??????????????????????????????????????? | | ??????????????????????????????????????? | | ?????????????????????????????????????? ### | | ?????????????????????????????????????? ####???? | | ?????????????????????????????????????? #???????# | | ??????????????????????????????????????# ??????## | | ?????????????????????????????????????## ??????#" | | ?????????????????????????????????????# #######" | | ?????????????? ????????????????????# # ^ ## | | ??????????? ?????????????????????# #" | | ??????????? ?????????????????###?# ##" | | ???????????? ????????????????## ### #?#" | | ????????????? ??????????????## ## ###" | | ?????????????? ?????????????## # #" | | ???????????????# ????????????## * | | ???????????????# ?????####?## | | ??????????????## ????## ### ### # | | ??????????????# ###?#@ ##### # | | ?????????????## ##;Y #??# ## | | ?????????????# ##% #?## ##### | | ?????????????# ## #?####???# | | ?????????????# #### #????????# | | ?????????????## #### ##??## ### ##????????# | | ??????????????##?????######????#####??##?????????# | | ?????????????????????????????????????????????????# | | ?????????????????????????????????????????????????? | | ?????????????????????????????????????????????????# | | ?????????????????????????????????????????????????# | | ?????????????????????????????????????????????????# | | ?????????????????????????????????????????????????# | | ?????????????????????????????????????????????????# | | ?????????????????????????????????????????????????? | | ?????????????????????????????????????????????????? | | ?????????????????????????????????????????????????? | | ?????????????????????????????????????????????????# | | ?????????????????????????????????????????????????# | | ?????????????????????????????????????????????????# | | ?????????????????????????????????????????????????# | | ???????????????????????????????????????????????### | | #########????????###### ""??????????????## # | | # # # ##??????##% >#???########## | | ###???##%#### ## ""??####"#"# | +----------------------------------------------------+ Best States ------------- Heat Dissipation 39 Energy Generation 15 Energy Capacity 250 Matter Stores 300 Matter Capacity 300 Sight Range 16 Terrain Scan Range 16 Terrain Scan Density 10 Armor Coverage 150 Evasion (%) 55 Targeting Accuracy 5 Recoil Reduction 2 Item Schematics ----------------- None Robot Schematics ------------------ None Fabricated ------------ Nothing Repaired ---------- Assault Rifle | 17% | -10/Materials EM Pulse Gun | 48% | -10/Materials Studied --------- None Alien Tech Used ----------------- None Achievements -------------- None Challenges ------------ None Game ------ Seed MolecularGatlingShockpuncher Manual? 0 Play Time 00:29:10 Cumulative 870.8 hours Start 2025.12.19 @ 01:14:51 End 2025.12.19 @ 01:43:17 Sessions 1 Manual Loads 0 Difficulty Rogue Special Mode None Game No. 558 Rogue 558 Adventurer 0 Explorer 0 Win Type - Total 1 Types 1/0/0/0/0/0/0/0/0/0 Lore% 80 Gallery% 72 Achievement% 53 Wizard Run 0 Options --------- Layout 1 ASCII 0 Keyboard 0 Movement Mouse Keybinds 0 Fullscreen 1 Font 20/SmallcapsGlow Map View 54x42 Zoom Use 0% Tactical HUD 1 Map Filters NONE Filters NONE Steam 1 RUN: d4667e58-a755-4b1e-aaf3-ab755ecb7ad9